[Event "*** MasterClass Titled Tuesday Blitz"]
[Site "Chess.com"]
[Date "2017.09.05"]
[Round "8"]
[White "andreimacovei2000"]
[Black "GMKrikor"]
[Result "0-1"]
[WhiteElo "2430"]
[BlackElo "2587"]
[TimeControl "180+2"]
[EndTime "14:52:52 PDT"]
[Termination "GMKrikor won by resignation"]

1. d4 {[%clk 0:03:01.9]} 1... Nf6 {[%clk 0:03:00.8]} 2. Nc3 {[%clk 0:03:01.9]}
2... d5 {[%clk 0:03:00.3]} 3. Bg5 {[%clk 0:02:56.1]} 3... Nbd7 {[%clk
0:02:58.5]} 4. e3 {[%clk 0:02:52.1]} 4... e6 {[%clk 0:02:45.7]} 5. Bd3 {[%clk
0:02:52.8]} 5... c5 {[%clk 0:02:43.9]} 6. dxc5 {[%clk 0:02:50.2]} 6... Nxc5
{[%clk 0:02:42]} 7. Nf3 {[%clk 0:02:48.3]} 7... Nxd3+ {[%clk 0:02:41.5]} 8. cxd3
{[%clk 0:02:44.8]} 8... Be7 {[%clk 0:02:43]} 9. O-O {[%clk 0:02:43]} 9... O-O
{[%clk 0:02:43.7]} 10. Rc1 {[%clk 0:02:43.4]} 10... Bd7 {[%clk 0:02:37.7]} 11.
Ne5 {[%clk 0:02:44.4]} 11... Be8 {[%clk 0:02:39.1]} 12. Qb3 {[%clk 0:02:41.2]}
12... Qb6 {[%clk 0:02:40.2]} 13. Qxb6 {[%clk 0:02:37.1]} 13... axb6 {[%clk
0:02:41.5]} 14. a3 {[%clk 0:02:39]} 14... h6 {[%clk 0:02:41]} 15. Bxf6 {[%clk
0:02:36]} 15... Bxf6 {[%clk 0:02:31.7]} 16. d4 {[%clk 0:02:37.3]} 16... Be7
{[%clk 0:02:31.1]} 17. Nd3 {[%clk 0:02:35.4]} 17... f6 {[%clk 0:02:27.7]} 18. f3
{[%clk 0:02:31.4]} 18... Bd7 {[%clk 0:02:22.9]} 19. e4 {[%clk 0:02:29.2]} 19...
dxe4 {[%clk 0:02:19.6]} 20. f4 {[%clk 0:02:28.9]} 20... exd3 {[%clk 0:02:20.2]}
0-1

[Event "*** MasterClass Titled Tuesday Blitz"]
[Site "Chess.com"]
[Date "2017.09.05"]
[Round "8"]
[White "abubakrtagelsir"]
[Black "Jahonas"]
[Result "1-0"]
[WhiteElo "2234"]
[BlackElo "2225"]
[TimeControl "180+2"]
[EndTime "14:53:13 PDT"]
[Termination "abubakrtagelsir won by resignation"]

1. e4 {[%clk 0:03:01.9]} 1... c6 {[%clk 0:03:00.5]} 2. d4 {[%clk 0:03:02]} 2...
d5 {[%clk 0:03:01.7]} 3. f3 {[%clk 0:03:01.7]} 3... Qb6 {[%clk 0:03:01.5]} 4.
Nc3 {[%clk 0:03:01.4]} 4... dxe4 {[%clk 0:03:02.4]} 5. fxe4 {[%clk 0:03:01.9]}
5... e6 {[%clk 0:02:44.8]} 6. Nf3 {[%clk 0:02:58.5]} 6... Nf6 {[%clk 0:02:42.1]}
7. Bd3 {[%clk 0:02:55.5]} 7... Be7 {[%clk 0:02:32.1]} 8. O-O {[%clk 0:02:55]}
8... c5 {[%clk 0:02:29.8]} 9. Kh1 {[%clk 0:02:40.4]} 9... cxd4 {[%clk
0:02:28.7]} 10. Nxd4 {[%clk 0:02:34.5]} 10... Nc6 {[%clk 0:02:20.7]} 11. Nxc6
{[%clk 0:02:28]} 11... bxc6 {[%clk 0:02:19.9]} 12. e5 {[%clk 0:02:27.5]} 12...
Nd5 {[%clk 0:02:17.7]} 13. Qh5 {[%clk 0:02:25.3]} 13... g6 {[%clk 0:02:14.1]}
14. Qf3 {[%clk 0:02:25.7]} 14... f5 {[%clk 0:02:02.6]} 15. exf6 {[%clk
0:02:20.5]} 15... Nxf6 {[%clk 0:01:57.1]} 16. Bh6 {[%clk 0:02:19.4]} 16... Rg8
{[%clk 0:01:49]} 17. Ne4 {[%clk 0:02:10.6]} 17... Qxb2 {[%clk 0:01:33.8]} 18.
Nxf6+ {[%clk 0:02:07.3]} 1-0

[Event "*** MasterClass Titled Tuesday Blitz"]
[Site "Chess.com"]
[Date "2017.09.05"]
[Round "8"]
[White "jlandaw"]
[Black "josiwales"]
[Result "1-0"]
[WhiteElo "2406"]
[BlackElo "2313"]
[TimeControl "180+2"]
[EndTime "14:54:13 PDT"]
[Termination "jlandaw won by resignation"]

1. e4 {[%clk 0:03:02]} 1... c5 {[%clk 0:02:59.7]} 2. Nc3 {[%clk 0:03:03]} 2...
e6 {[%clk 0:02:59.3]} 3. g3 {[%clk 0:03:04.3]} 3... Nc6 {[%clk 0:02:59.1]} 4.
Bg2 {[%clk 0:03:05.6]} 4... g6 {[%clk 0:03:00]} 5. d3 {[%clk 0:03:06.7]} 5...
Bg7 {[%clk 0:03:00.7]} 6. Be3 {[%clk 0:03:08.2]} 6... d6 {[%clk 0:02:59.2]} 7.
f4 {[%clk 0:03:08.5]} 7... Nge7 {[%clk 0:02:58.9]} 8. Nf3 {[%clk 0:03:08.6]}
8... O-O {[%clk 0:02:58.7]} 9. O-O {[%clk 0:03:09.9]} 9... Rb8 {[%clk 0:03:00]}
10. a3 {[%clk 0:03:05.8]} 10... b5 {[%clk 0:02:57.7]} 11. Rb1 {[%clk 0:02:47.3]}
11... a5 {[%clk 0:02:55.4]} 12. a4 {[%clk 0:02:46.5]} 12... b4 {[%clk
0:02:55.1]} 13. Nb5 {[%clk 0:02:47.8]} 13... Ba6 {[%clk 0:02:49.4]} 14. c4
{[%clk 0:02:47.3]} 14... Bxb5 {[%clk 0:02:33.9]} 15. axb5 {[%clk 0:02:44.4]}
15... Nd4 {[%clk 0:02:35.9]} 16. Nxd4 {[%clk 0:02:40.1]} 16... cxd4 {[%clk
0:02:32.1]} 17. Bd2 {[%clk 0:02:41.1]} 17... f5 {[%clk 0:02:28.4]} 18. e5 {[%clk
0:02:31]} 18... dxe5 {[%clk 0:02:23.5]} 19. fxe5 {[%clk 0:02:33]} 19... Bxe5
{[%clk 0:02:19.8]} 20. Qe2 {[%clk 0:02:31]} 20... Bg7 {[%clk 0:02:01.8]} 21.
Qxe6+ {[%clk 0:02:20.5]} 21... Kh8 {[%clk 0:02:02.3]} 22. Bg5 {[%clk 0:02:11.8]}
22... Re8 {[%clk 0:01:58.1]} 23. Rbe1 {[%clk 0:01:57.3]} 23... Rb6 {[%clk
0:01:28.6]} 24. Bc6 {[%clk 0:01:52.2]} 1-0

[Event "*** MasterClass Titled Tuesday Blitz"]
[Site "Chess.com"]
[Date "2017.09.05"]
[Round "8"]
[White "K_A_S_T_O_R"]
[Black "johnathan113"]
[Result "0-1"]
[WhiteElo "2599"]
[BlackElo "2531"]
[TimeControl "180+2"]
[EndTime "14:54:19 PDT"]
[Termination "johnathan113 won by resignation"]

1. e4 {[%clk 0:03:00.4]} 1... c5 {[%clk 0:03:00.6]} 2. Nf3 {[%clk 0:03:01.5]}
2... g6 {[%clk 0:03:02.2]} 3. d4 {[%clk 0:03:02.7]} 3... cxd4 {[%clk 0:03:04.1]}
4. Nxd4 {[%clk 0:03:04.3]} 4... Nc6 {[%clk 0:03:05.2]} 5. c4 {[%clk 0:03:05.7]}
5... Bg7 {[%clk 0:03:06]} 6. Be3 {[%clk 0:03:07.1]} 6... Nf6 {[%clk 0:03:07.4]}
7. Nc3 {[%clk 0:03:08.6]} 7... O-O {[%clk 0:03:09]} 8. Be2 {[%clk 0:03:10.1]}
8... b6 {[%clk 0:03:09.9]} 9. O-O {[%clk 0:03:11.5]} 9... Bb7 {[%clk 0:03:11.5]}
10. Ndb5 {[%clk 0:03:13]} 10... Rc8 {[%clk 0:02:57.9]} 11. f3 {[%clk 0:03:13.4]}
11... d6 {[%clk 0:02:59.2]} 12. Rc1 {[%clk 0:03:11.2]} 12... Qd7 {[%clk
0:02:54.8]} 13. Qd2 {[%clk 0:03:10.6]} 13... Rfd8 {[%clk 0:02:56.2]} 14. Rfd1
{[%clk 0:03:10.8]} 14... h5 {[%clk 0:02:57.4]} 15. b3 {[%clk 0:03:09.4]} 15...
Qe8 {[%clk 0:02:56.9]} 16. Nd5 {[%clk 0:03:07.8]} 16... Nd7 {[%clk 0:02:48.9]}
17. Bg5 {[%clk 0:03:02.4]} 17... Nc5 {[%clk 0:02:35.2]} 18. Nxa7 {[%clk
0:02:50.9]} 18... Nxa7 {[%clk 0:02:33.2]} 19. Nxe7+ {[%clk 0:02:51.4]} 19... Kh7
{[%clk 0:02:34.3]} 20. Nxc8 {[%clk 0:02:48.3]} 20... Rxc8 {[%clk 0:02:35.5]} 21.
Qxd6 {[%clk 0:02:47.6]} 21... Nc6 {[%clk 0:02:31]} 22. Kh1 {[%clk 0:02:44.6]}
22... Ne6 {[%clk 0:02:24.8]} 23. Bh4 {[%clk 0:02:40.4]} 23... Ned4 {[%clk
0:02:11.2]} 24. Bf1 {[%clk 0:02:16.6]} 24... Be5 {[%clk 0:02:07]} 25. Qa3 {[%clk
0:02:13.9]} 25... Ra8 {[%clk 0:02:07.7]} 26. Qb2 {[%clk 0:02:03.7]} 26... Nxf3
{[%clk 0:02:06.4]} 27. Qf2 {[%clk 0:02:04.4]} 27... Nxh4 {[%clk 0:02:05.1]} 28.
Qxh4 {[%clk 0:02:04.4]} 28... Rxa2 {[%clk 0:02:06.6]} 29. Rd5 {[%clk 0:02:04.1]}
29... Nd4 {[%clk 0:01:47.5]} 30. Rd8 {[%clk 0:02:00.8]} 30... Qe6 {[%clk
0:01:48.8]} 31. Re1 {[%clk 0:01:55.7]} 31... Bf6 {[%clk 0:01:42.1]} 0-1

[Event "*** MasterClass Titled Tuesday Blitz"]
[Site "Chess.com"]
[Date "2017.09.05"]
[Round "8"]
[White "Me_ch_an"]
[Black "VladDobrov"]
[Result "0-1"]
[WhiteElo "2203"]
[BlackElo "2598"]
[TimeControl "180+2"]
[EndTime "14:54:57 PDT"]
[Termination "VladDobrov won by resignation"]

1. e4 {[%clk 0:03:01.9]} 1... c5 {[%clk 0:03:00.7]} 2. Na3 {[%clk 0:03:01.7]}
2... g6 {[%clk 0:02:58.8]} 3. c3 {[%clk 0:02:59.2]} 3... Bg7 {[%clk 0:03:00.3]}
4. f4 {[%clk 0:02:56.3]} 4... d5 {[%clk 0:03:00.8]} 5. e5 {[%clk 0:02:56.1]}
5... Nc6 {[%clk 0:03:01.7]} 6. Nf3 {[%clk 0:02:56.1]} 6... Bg4 {[%clk
0:03:01.6]} 7. Be2 {[%clk 0:02:54.5]} 7... f6 {[%clk 0:03:01.8]} 8. d4 {[%clk
0:02:38.6]} 8... Nh6 {[%clk 0:03:01.7]} 9. Be3 {[%clk 0:02:00.9]} 9... Nf5
{[%clk 0:03:02.2]} 10. Bf2 {[%clk 0:02:01.3]} 10... Bxf3 {[%clk 0:03:02.9]} 11.
Bxf3 {[%clk 0:02:00.9]} 11... cxd4 {[%clk 0:03:03.6]} 12. cxd4 {[%clk
0:01:57.9]} 12... fxe5 {[%clk 0:03:05.1]} 13. dxe5 {[%clk 0:01:51.5]} 13... Qa5+
{[%clk 0:03:04.4]} 14. Qd2 {[%clk 0:01:50]} 14... Qxd2+ {[%clk 0:03:04.7]} 15.
Kxd2 {[%clk 0:01:51.9]} 15... e6 {[%clk 0:03:06.6]} 16. Nb5 {[%clk 0:01:47.9]}
16... O-O {[%clk 0:03:07.6]} 17. Nc7 {[%clk 0:01:43.5]} 17... Bh6 {[%clk
0:03:07.9]} 18. Nxa8 {[%clk 0:01:41.8]} 18... Bxf4+ {[%clk 0:03:08.1]} 19. Ke2
{[%clk 0:01:39.1]} 19... Rxa8 {[%clk 0:03:08.5]} 20. Rac1 {[%clk 0:01:32.8]}
20... Bxc1 {[%clk 0:03:09.1]} 21. Rxc1 {[%clk 0:01:31.3]} 21... Kf7 {[%clk
0:03:00.7]} 22. g4 {[%clk 0:01:28.7]} 22... Nfd4+ {[%clk 0:02:59.3]} 23. Bxd4
{[%clk 0:01:28.8]} 23... Nxd4+ {[%clk 0:03:01.2]} 24. Ke3 {[%clk 0:01:29.2]}
24... Nc6 {[%clk 0:03:03.1]} 25. Kf4 {[%clk 0:01:23.4]} 25... Ke7 {[%clk
0:03:04.3]} 26. Re1 {[%clk 0:01:21.7]} 26... h6 {[%clk 0:03:04.8]} 27. h4 {[%clk
0:01:20.7]} 27... Rf8+ {[%clk 0:03:05.1]} 28. Kg3 {[%clk 0:01:21.5]} 28... g5
{[%clk 0:03:04.2]} 29. hxg5 {[%clk 0:01:07.4]} 29... hxg5 {[%clk 0:03:06.1]} 30.
a3 {[%clk 0:01:07]} 30... a5 {[%clk 0:03:06.8]} 31. b4 {[%clk 0:01:03.7]} 31...
axb4 {[%clk 0:03:07.5]} 32. axb4 {[%clk 0:01:05.6]} 32... Nxb4 {[%clk
0:03:06.3]} 33. Rb1 {[%clk 0:01:04.7]} 33... Rf4 {[%clk 0:03:06.7]} 34. Rb3
{[%clk 0:00:58.3]} 34... Kd7 {[%clk 0:03:07.5]} 35. Rb1 {[%clk 0:00:42.9]} 35...
Kc7 {[%clk 0:03:08.8]} 36. Rh1 {[%clk 0:00:41.9]} 36... Rf7 {[%clk 0:03:09.6]}
37. Rh6 {[%clk 0:00:38.9]} 37... Nc6 {[%clk 0:03:10.8]} 38. Rxe6 {[%clk
0:00:38.7]} 38... Rxf3+ {[%clk 0:03:11.8]} 0-1

[Event "*** MasterClass Titled Tuesday Blitz"]
[Site "Chess.com"]
[Date "2017.09.05"]
[Round "8"]
[White "chesstatour"]
[Black "Indianlad"]
[Result "0-1"]
[WhiteElo "2071"]
[BlackElo "2604"]
[TimeControl "180+2"]
[EndTime "14:55:38 PDT"]
[Termination "Indianlad won on time"]

1. c4 {[%clk 0:03:01.9]} 1... c5 {[%clk 0:03:01.9]} 2. Nf3 {[%clk 0:02:54.9]}
2... g6 {[%clk 0:03:02.7]} 3. Nc3 {[%clk 0:02:56]} 3... Bg7 {[%clk 0:03:03.6]}
4. g3 {[%clk 0:02:54.8]} 4... Nc6 {[%clk 0:03:03.9]} 5. Bg2 {[%clk 0:02:56.3]}
5... d6 {[%clk 0:03:05.5]} 6. O-O {[%clk 0:02:57.8]} 6... h5 {[%clk 0:03:06.4]}
7. h4 {[%clk 0:02:57.7]} 7... Nh6 {[%clk 0:03:06.3]} 8. Rb1 {[%clk 0:02:23.1]}
8... Bg4 {[%clk 0:03:02.5]} 9. d3 {[%clk 0:01:59.8]} 9... Bxf3 {[%clk 0:02:59]}
10. Bxf3 {[%clk 0:02:00.2]} 10... Nf5 {[%clk 0:03:01]} 11. e3 {[%clk 0:01:59.5]}
11... e6 {[%clk 0:03:00.2]} 12. Bd2 {[%clk 0:01:53.9]} 12... Rb8 {[%clk
0:03:01.2]} 13. a3 {[%clk 0:01:54.3]} 13... Ne5 {[%clk 0:02:56.3]} 14. Be2
{[%clk 0:01:43.2]} 14... O-O {[%clk 0:02:39]} 15. Be1 {[%clk 0:01:21.4]} 15...
b6 {[%clk 0:02:39.3]} 16. b4 {[%clk 0:01:16.5]} 16... Qd7 {[%clk 0:02:39.3]} 17.
Qa4 {[%clk 0:01:12]} 17... Qb7 {[%clk 0:02:38]} 18. Qd1 {[%clk 0:01:02.4]} 18...
Rfd8 {[%clk 0:02:39.4]} 19. Ne4 {[%clk 0:00:36.1]} 19... Qe7 {[%clk 0:01:52.2]}
20. Kh2 {[%clk 0:00:17.3]} 20... Bh6 {[%clk 0:01:49.7]} 21. Qd2 {[%clk
0:00:08.6]} 21... d5 {[%clk 0:01:50.2]} 22. cxd5 {[%clk 0:00:07.7]} 22... exd5
{[%clk 0:01:52.5]} 23. Nc3 {[%clk 0:00:06.3]} 23... d4 {[%clk 0:01:53.5]} 24.
Ne4 {[%clk 0:00:03.8]} 24... dxe3 {[%clk 0:01:54.5]} 25. fxe3 {[%clk 0:00:05]}
25... Nxe3 {[%clk 0:01:55.9]} 0-1

[Event "*** MasterClass Titled Tuesday Blitz"]
[Site "Chess.com"]
[Date "2017.09.05"]
[Round "8"]
[White "Vamostodorecto"]
[Black "Rodalquilar"]
[Result "0-1"]
[WhiteElo "2327"]
[BlackElo "2497"]
[TimeControl "180+2"]
[EndTime "14:56:01 PDT"]
[Termination "Rodalquilar won by resignation"]

1. d4 {[%clk 0:03:01.9]} 1... Nf6 {[%clk 0:02:53.6]} 2. c4 {[%clk 0:03:02.5]}
2... c5 {[%clk 0:02:54.8]} 3. d5 {[%clk 0:03:03.4]} 3... b5 {[%clk 0:02:56.2]}
4. cxb5 {[%clk 0:03:05.3]} 4... a6 {[%clk 0:02:56.9]} 5. Nc3 {[%clk 0:03:05.6]}
5... axb5 {[%clk 0:02:56.3]} 6. e4 {[%clk 0:03:07.2]} 6... b4 {[%clk 0:02:53.6]}
7. Nb5 {[%clk 0:03:07.8]} 7... d6 {[%clk 0:02:53.7]} 8. Bc4 {[%clk 0:03:08.5]}
8... Nbd7 {[%clk 0:02:47.8]} 9. Nf3 {[%clk 0:03:07.5]} 9... g6 {[%clk
0:02:41.5]} 10. b3 {[%clk 0:03:06.1]} 10... Bg7 {[%clk 0:02:42.2]} 11. Bb2
{[%clk 0:03:07.1]} 11... O-O {[%clk 0:02:43.5]} 12. Qe2 {[%clk 0:03:07.7]} 12...
Nb6 {[%clk 0:02:41.5]} 13. Bd3 {[%clk 0:03:07.9]} 13... Ba6 {[%clk 0:02:32.9]}
14. a4 {[%clk 0:03:03.9]} 14... bxa3 {[%clk 0:02:33.7]} 15. Rxa3 {[%clk
0:02:49.9]} 15... Bxb5 {[%clk 0:02:33]} 16. Bxb5 {[%clk 0:02:49.3]} 16... Nxe4
{[%clk 0:02:24]} 17. Rxa8 {[%clk 0:02:38.4]} 17... Qxa8 {[%clk 0:02:24.6]} 18.
O-O {[%clk 0:02:20.1]} 18... Bxb2 {[%clk 0:01:36.6]} 19. Qxb2 {[%clk 0:02:19.8]}
19... Qxd5 {[%clk 0:01:33.4]} 20. Re1 {[%clk 0:02:11.8]} 20... e5 {[%clk
0:01:32.8]} 21. h4 {[%clk 0:02:08.4]} 21... Rb8 {[%clk 0:01:20.8]} 22. h5 {[%clk
0:02:00.3]} 22... Nc8 {[%clk 0:00:48.1]} 23. Ba4 {[%clk 0:01:36.9]} 23... Ne7
{[%clk 0:00:36]} 24. Qe2 {[%clk 0:01:34.9]} 24... Nc3 {[%clk 0:00:35.5]} 25. Qa6
{[%clk 0:01:30.6]} 25... Nxa4 {[%clk 0:00:32.3]} 26. bxa4 {[%clk 0:01:32.5]}
26... Qc6 {[%clk 0:00:32.7]} 27. Qa7 {[%clk 0:01:26.7]} 27... Rb7 {[%clk
0:00:33.5]} 28. Qa8+ {[%clk 0:01:26.3]} 28... Qc8 {[%clk 0:00:34.7]} 29. Qa6
{[%clk 0:01:23.6]} 29... Rd7 {[%clk 0:00:32]} 30. h6 {[%clk 0:01:23.5]} 30...
Qxa6 {[%clk 0:00:32.4]} 0-1

[Event "*** MasterClass Titled Tuesday Blitz"]
[Site "Chess.com"]
[Date "2017.09.05"]
[Round "8"]
[White "cheese111"]
[Black "W_Amadeus"]
[Result "1-0"]
[WhiteElo "2340"]
[BlackElo "2401"]
[TimeControl "180+2"]
[EndTime "14:56:07 PDT"]
[Termination "cheese111 won by resignation"]

1. e4 {[%clk 0:03:01.9]} 1... e5 {[%clk 0:03:00]} 2. Nf3 {[%clk 0:03:02.4]} 2...
Nc6 {[%clk 0:03:01.2]} 3. Bc4 {[%clk 0:03:02.5]} 3... Nf6 {[%clk 0:02:58.9]} 4.
d3 {[%clk 0:03:03.3]} 4... Be7 {[%clk 0:02:59.3]} 5. O-O {[%clk 0:03:03.9]} 5...
O-O {[%clk 0:03:00.1]} 6. Re1 {[%clk 0:03:05.4]} 6... d6 {[%clk 0:03:00.3]} 7.
a4 {[%clk 0:03:06.8]} 7... Na5 {[%clk 0:03:01.2]} 8. Ba2 {[%clk 0:03:07.5]} 8...
c5 {[%clk 0:03:02.2]} 9. c3 {[%clk 0:03:09.1]} 9... Nc6 {[%clk 0:02:54.9]} 10.
Na3 {[%clk 0:03:10.3]} 10... h6 {[%clk 0:02:53.3]} 11. Bd2 {[%clk 0:03:11.1]}
11... a6 {[%clk 0:02:38.3]} 12. h3 {[%clk 0:03:11.7]} 12... Re8 {[%clk 0:02:25]}
13. Nc4 {[%clk 0:03:07.3]} 13... Be6 {[%clk 0:02:02.2]} 14. b4 {[%clk
0:03:07.4]} 14... cxb4 {[%clk 0:01:36]} 15. cxb4 {[%clk 0:03:09.3]} 15... b5
{[%clk 0:01:37.2]} 16. axb5 {[%clk 0:03:10]} 16... axb5 {[%clk 0:01:37.7]} 17.
Na5 {[%clk 0:03:11.5]} 17... Bxa2 {[%clk 0:00:56]} 18. Rxa2 {[%clk 0:03:01.2]}
18... Qd7 {[%clk 0:00:56.8]} 19. Qb3 {[%clk 0:02:58.8]} 19... Bf8 {[%clk
0:00:51.8]} 20. Rc1 {[%clk 0:02:56.4]} 20... Rec8 {[%clk 0:00:31.4]} 21. Be3
{[%clk 0:02:17.3]} 21... Nxa5 {[%clk 0:00:22.5]} 22. bxa5 {[%clk 0:02:15.7]}
22... Rxc1+ {[%clk 0:00:21.8]} 23. Bxc1 {[%clk 0:02:17.6]} 23... d5 {[%clk
0:00:23.2]} 24. Nxe5 {[%clk 0:02:12.8]} 24... Qc7 {[%clk 0:00:23.9]} 25. Bf4
{[%clk 0:02:11.8]} 25... dxe4 {[%clk 0:00:19]} 26. dxe4 {[%clk 0:02:08.7]} 26...
Nxe4 {[%clk 0:00:18.1]} 27. Qd5 {[%clk 0:02:09.1]} 27... Nc3 {[%clk 0:00:10.5]}
28. Qxa8 {[%clk 0:02:08.4]} 28... Nxa2 {[%clk 0:00:11.6]} 29. Ng6 {[%clk
0:02:06.5]} 29... Qc5 {[%clk 0:00:11.7]} 30. Qxf8+ {[%clk 0:01:59.8]} 30... Qxf8
{[%clk 0:00:12.8]} 31. Nxf8 {[%clk 0:02:01.7]} 31... Nb4 {[%clk 0:00:14.2]} 32.
Bd6 {[%clk 0:01:56.5]} 32... Nc6 {[%clk 0:00:12.9]} 33. a6 {[%clk 0:01:54.1]}
33... f6 {[%clk 0:00:09.1]} 34. Ne6 {[%clk 0:01:53.1]} 34... Kf7 {[%clk
0:00:10]} 35. Nd8+ {[%clk 0:01:53.7]} 35... Nxd8 {[%clk 0:00:09.7]} 36. a7
{[%clk 0:01:54.8]} 36... Nb7 {[%clk 0:00:09.3]} 37. Bb4 {[%clk 0:01:55.7]} 1-0

[Event "*** MasterClass Titled Tuesday Blitz"]
[Site "Chess.com"]
[Date "2017.09.05"]
[Round "8"]
[White "Sanan_Sjugirov"]
[Black "JSPrepz"]
[Result "0-1"]
[WhiteElo "2633"]
[BlackElo "2499"]
[TimeControl "180+2"]
[EndTime "14:56:43 PDT"]
[Termination "JSPrepz won by resignation"]

1. d4 {[%clk 0:03:01.9]} 1... Nf6 {[%clk 0:03:00.4]} 2. c4 {[%clk 0:03:02]} 2...
c5 {[%clk 0:03:01.3]} 3. d5 {[%clk 0:03:01.8]} 3... b5 {[%clk 0:03:02.5]} 4.
cxb5 {[%clk 0:03:02.8]} 4... a6 {[%clk 0:03:04]} 5. e3 {[%clk 0:03:04]} 5... Bb7
{[%clk 0:03:02]} 6. Nc3 {[%clk 0:03:04]} 6... e6 {[%clk 0:03:01.8]} 7. e4 {[%clk
0:03:01.5]} 7... axb5 {[%clk 0:03:00.2]} 8. Bxb5 {[%clk 0:03:01.2]} 8... exd5
{[%clk 0:02:51]} 9. exd5 {[%clk 0:02:59.8]} 9... Bd6 {[%clk 0:02:46.3]} 10. Nge2
{[%clk 0:02:54.7]} 10... O-O {[%clk 0:02:47.1]} 11. O-O {[%clk 0:02:55.7]} 11...
Na6 {[%clk 0:02:46.7]} 12. Ng3 {[%clk 0:02:45.2]} 12... Nc7 {[%clk 0:02:42.1]}
13. Bc4 {[%clk 0:02:45.3]} 13... Be5 {[%clk 0:02:43.4]} 14. d6 {[%clk 0:02:42]}
14... Ne6 {[%clk 0:02:41.8]} 15. Re1 {[%clk 0:02:32.8]} 15... Bd4 {[%clk
0:02:39.4]} 16. Nb5 {[%clk 0:02:24.3]} 16... Qb6 {[%clk 0:02:36.1]} 17. Nxd4
{[%clk 0:02:22.4]} 17... cxd4 {[%clk 0:02:38]} 18. Nf5 {[%clk 0:02:13.9]} 18...
Kh8 {[%clk 0:02:33.5]} 19. b3 {[%clk 0:01:58.5]} 19... Qc6 {[%clk 0:02:22]} 20.
f3 {[%clk 0:01:36.5]} 20... Qc5 {[%clk 0:02:14.6]} 21. Bd3 {[%clk 0:01:37.1]}
21... Ba6 {[%clk 0:02:12.5]} 22. Re2 {[%clk 0:00:43.5]} 22... Qd5 {[%clk
0:01:48.9]} 23. Bb2 {[%clk 0:00:35.1]} 23... Bxd3 {[%clk 0:01:46]} 24. Qxd3
{[%clk 0:00:37]} 24... Nf4 {[%clk 0:01:36.8]} 25. Ne7 {[%clk 0:00:30.3]} 25...
Qxd6 {[%clk 0:01:11.8]} 26. Nf5 {[%clk 0:00:24.7]} 26... Qd5 {[%clk 0:01:00.8]}
27. Ne7 {[%clk 0:00:25.9]} 27... Qc5 {[%clk 0:00:43.4]} 28. Rc2 {[%clk
0:00:16.7]} 28... Nxd3 {[%clk 0:00:42.5]} 0-1

[Event "*** MasterClass Titled Tuesday Blitz"]
[Site "Chess.com"]
[Date "2017.09.05"]
[Round "8"]
[White "PowerThinking2650"]
[Black "3f32"]
[Result "1-0"]
[WhiteElo "2241"]
[BlackElo "2368"]
[TimeControl "180+2"]
[EndTime "14:56:54 PDT"]
[Termination "PowerThinking2650 won by resignation"]

1. e4 {[%clk 0:03:01.9]} 1... c5 {[%clk 0:02:56.4]} 2. Nf3 {[%clk 0:03:02.4]}
2... d6 {[%clk 0:02:56.8]} 3. d4 {[%clk 0:03:03.4]} 3... cxd4 {[%clk 0:02:58.7]}
4. Nxd4 {[%clk 0:03:04.6]} 4... Nf6 {[%clk 0:03:00.3]} 5. Nc3 {[%clk 0:03:05.9]}
5... a6 {[%clk 0:03:01]} 6. Be3 {[%clk 0:03:04.9]} 6... e5 {[%clk 0:03:00.4]} 7.
Nb3 {[%clk 0:03:05.3]} 7... Be6 {[%clk 0:03:00.2]} 8. f3 {[%clk 0:03:05.7]} 8...
b5 {[%clk 0:03:00.4]} 9. Qd2 {[%clk 0:03:06.7]} 9... Nbd7 {[%clk 0:02:56.3]} 10.
g4 {[%clk 0:03:01.7]} 10... h6 {[%clk 0:02:56.1]} 11. Nd5 {[%clk 0:02:53.7]}
11... Bxd5 {[%clk 0:02:53.9]} 12. exd5 {[%clk 0:02:54.7]} 12... Nb6 {[%clk
0:02:54.5]} 13. Bxb6 {[%clk 0:02:52.8]} 13... Qxb6 {[%clk 0:02:56.4]} 14. Na5
{[%clk 0:02:49.3]} 14... Nxd5 {[%clk 0:02:51.7]} 15. Qxd5 {[%clk 0:02:41.8]}
15... Qxa5+ {[%clk 0:02:52.1]} 16. c3 {[%clk 0:02:43]} 16... Rc8 {[%clk
0:02:52.6]} 17. Bd3 {[%clk 0:02:34.3]} 17... Be7 {[%clk 0:02:49]} 18. Qe4 {[%clk
0:02:12.6]} 18... Bh4+ {[%clk 0:02:27.3]} 19. Ke2 {[%clk 0:02:13.5]} 19... Qb6
{[%clk 0:02:25.4]} 20. Rhf1 {[%clk 0:02:08.8]} 20... Qc6 {[%clk 0:02:18]} 21.
Qxc6+ {[%clk 0:02:01.9]} 21... Rxc6 {[%clk 0:02:19]} 22. a4 {[%clk 0:02:03.3]}
22... O-O {[%clk 0:01:26.3]} 23. axb5 {[%clk 0:02:04.1]} 23... axb5 {[%clk
0:01:28.2]} 24. Bxb5 {[%clk 0:02:05]} 24... Rc5 {[%clk 0:01:27.5]} 25. c4 {[%clk
0:02:03.1]} 25... d5 {[%clk 0:01:28.2]} 26. b4 {[%clk 0:02:03.8]} 26... Rxb5
{[%clk 0:01:25.2]} 27. cxb5 {[%clk 0:02:04.4]} 27... Rb8 {[%clk 0:01:26.8]} 28.
Ra5 {[%clk 0:01:58.5]} 28... Bd8 {[%clk 0:01:23.3]} 29. Rb1 {[%clk 0:01:56.5]}
29... Kf8 {[%clk 0:01:18.1]} 30. b6 {[%clk 0:01:52.3]} 30... Bxb6 {[%clk
0:01:16.1]} 31. Rxd5 {[%clk 0:01:53]} 31... Bd4 {[%clk 0:01:18.5]} 32. Rd7
{[%clk 0:01:49.4]} 32... Ke8 {[%clk 0:01:18.9]} 33. Rc7 {[%clk 0:01:47.8]} 33...
Rb5 {[%clk 0:01:17.9]} 34. Kd3 {[%clk 0:01:41.7]} 34... h5 {[%clk 0:01:08.5]}
35. gxh5 {[%clk 0:01:37.9]} 35... Rb6 {[%clk 0:01:06.9]} 36. b5 {[%clk
0:01:25.7]} 36... Rh6 {[%clk 0:01:06.9]} 37. Ke4 {[%clk 0:01:11.3]} 37... Rxh5
{[%clk 0:01:03.6]} 38. b6 {[%clk 0:01:08.5]} 38... f5+ {[%clk 0:00:55.9]} 39.
Kd5 {[%clk 0:01:08.7]} 39... Kd8 {[%clk 0:00:57]} 40. b7 {[%clk 0:01:04.8]}
40... Ba7 {[%clk 0:00:56.8]} 41. Rc8+ {[%clk 0:00:54.5]} 41... Kd7 {[%clk
0:00:57.6]} 42. Ra8 {[%clk 0:00:55.6]} 42... Bb8 {[%clk 0:00:59.4]} 1-0